[Event "*** SCC Grand Prix: Titled Tuesday Blitz"]
[Site "Chess.com"]
[Date "2020.07.07"]
[Round "2"]
[White "MateSchmate"]
[Black "HarryCun"]
[Result "1/2-1/2"]
[WhiteElo "2413"]
[BlackElo "2178"]
[TimeControl "180+1"]
[EndTime "10:18:52 PDT"]
[Termination "Game drawn by stalemate"]

1. e4 {[%clk 0:03:00.9]} 1... c6 {[%clk 0:03:00.9]} 2. Bc4 {[%clk 0:03:00.6]}
2... d5 {[%clk 0:03:01.1]} 3. Bb3 {[%clk 0:03:01.5]} 3... dxe4 {[%clk
0:03:01.1]} 4. Qh5 {[%clk 0:03:01.5]} 4... g6 {[%clk 0:03:00.1]} 5. Qh4 {[%clk
0:03:00.9]} 5... e6 {[%clk 0:02:57.2]} 6. Qxe4 {[%clk 0:02:57.5]} 6... Nf6
{[%clk 0:02:56]} 7. Qe2 {[%clk 0:02:57.1]} 7... Bg7 {[%clk 0:02:56.2]} 8. Nc3
{[%clk 0:02:57]} 8... O-O {[%clk 0:02:55.6]} 9. Nf3 {[%clk 0:02:56.8]} 9... Nd5
{[%clk 0:02:54.6]} 10. O-O {[%clk 0:02:53.6]} 10... Nd7 {[%clk 0:02:54.6]} 11.
Nxd5 {[%clk 0:02:51.3]} 11... cxd5 {[%clk 0:02:54.6]} 12. d4 {[%clk 0:02:51.6]}
12... b6 {[%clk 0:02:55.1]} 13. c3 {[%clk 0:02:51.2]} 13... Bb7 {[%clk
0:02:55.5]} 14. Bg5 {[%clk 0:02:50.6]} 14... Nf6 {[%clk 0:02:50.2]} 15. Ne5
{[%clk 0:02:50.1]} 15... Qc7 {[%clk 0:02:48]} 16. Qf3 {[%clk 0:02:48]} 16... Nd7
{[%clk 0:02:34.9]} 17. Ng4 {[%clk 0:02:44.5]} 17... e5 {[%clk 0:02:20.5]} 18.
Ba4 {[%clk 0:02:22.3]} 18... e4 {[%clk 0:02:07.7]} 19. Qh3 {[%clk 0:02:21.6]}
19... h5 {[%clk 0:02:05.5]} 20. Bxd7 {[%clk 0:02:17.4]} 20... hxg4 {[%clk
0:02:02.1]} 21. Bxg4 {[%clk 0:02:18.3]} 21... Bc8 {[%clk 0:01:59.8]} 22. Bxc8
{[%clk 0:02:15.4]} 22... Qxc8 {[%clk 0:02:00.7]} 23. Qxc8 {[%clk 0:02:14.5]}
23... Raxc8 {[%clk 0:01:59]} 24. f3 {[%clk 0:02:14.8]} 24... exf3 {[%clk
0:01:55.7]} 25. Rxf3 {[%clk 0:02:15.7]} 25... Rfe8 {[%clk 0:01:55.8]} 26. Kf2
{[%clk 0:02:13.7]} 26... Re4 {[%clk 0:01:44.9]} 27. Re1 {[%clk 0:02:12.6]} 27...
Rce8 {[%clk 0:01:45.4]} 28. Rfe3 {[%clk 0:02:12.3]} 28... f6 {[%clk 0:01:39]}
29. Rxe4 {[%clk 0:02:10.7]} 29... dxe4 {[%clk 0:01:37.6]} 30. Bf4 {[%clk
0:02:10.6]} 30... g5 {[%clk 0:01:36.3]} 31. Bd6 {[%clk 0:02:07.1]} 31... f5
{[%clk 0:01:35.6]} 32. g3 {[%clk 0:02:06.5]} 32... Bh6 {[%clk 0:01:34]} 33. Be5
{[%clk 0:02:01.6]} 33... Kf7 {[%clk 0:01:32.7]} 34. g4 {[%clk 0:02:01.1]} 34...
Bg7 {[%clk 0:01:33]} 35. Bxg7 {[%clk 0:01:55.9]} 35... Kxg7 {[%clk 0:01:31.7]}
36. gxf5 {[%clk 0:01:55.8]} 36... Kf6 {[%clk 0:01:32]} 37. Ke3 {[%clk
0:01:55.9]} 37... Kxf5 {[%clk 0:01:31.6]} 38. h3 {[%clk 0:01:56.3]} 38... Rh8
{[%clk 0:01:24.9]} 39. Rf1+ {[%clk 0:01:57.2]} 39... Kg6 {[%clk 0:01:24]} 40.
Rh1 {[%clk 0:01:45.5]} 40... Rh4 {[%clk 0:01:20.3]} 41. d5 {[%clk 0:01:44.4]}
41... Kf5 {[%clk 0:01:19.5]} 42. d6 {[%clk 0:01:41.5]} 42... Ke6 {[%clk
0:01:13]} 43. Rd1 {[%clk 0:01:41]} 43... Rxh3+ {[%clk 0:01:03.6]} 44. Kxe4
{[%clk 0:01:40]} 44... Rh7 {[%clk 0:01:04.5]} 45. d7 {[%clk 0:01:22.2]} 45...
Rxd7 {[%clk 0:00:53.9]} 46. Rxd7 {[%clk 0:01:23.1]} 46... Kxd7 {[%clk 0:00:54]}
47. Kf5 {[%clk 0:01:22.6]} 47... Kd6 {[%clk 0:00:53.2]} 48. Kxg5 {[%clk
0:01:22.7]} 48... Ke5 {[%clk 0:00:53.3]} 49. b3 {[%clk 0:00:58.2]} 49... b5
{[%clk 0:00:40.3]} 50. Kg6 {[%clk 0:00:43.4]} 50... Ke4 {[%clk 0:00:37.1]} 51.
Kf6 {[%clk 0:00:42.5]} 51... Kd3 {[%clk 0:00:32.1]} 52. c4 {[%clk 0:00:26.1]}
52... bxc4 {[%clk 0:00:32.1]} 53. bxc4 {[%clk 0:00:27]} 53... Kxc4 {[%clk
0:00:32.5]} 54. Ke5 {[%clk 0:00:27.4]} 54... a5 {[%clk 0:00:32]} 55. a4 {[%clk
0:00:26.7]} 55... Kb4 {[%clk 0:00:25.3]} 56. Kd4 {[%clk 0:00:27.6]} 56... Kxa4
{[%clk 0:00:24.2]} 57. Kc3 {[%clk 0:00:27.4]} 57... Ka3 {[%clk 0:00:24.6]} 58.
Kc2 {[%clk 0:00:27.6]} 58... Ka2 {[%clk 0:00:24.5]} 59. Kc1 {[%clk 0:00:25.2]}
59... a4 {[%clk 0:00:24.9]} 60. Kc2 {[%clk 0:00:25.2]} 60... a3 {[%clk
0:00:25.3]} 61. Kc1 {[%clk 0:00:25.5]} 61... Kb3 {[%clk 0:00:25.4]} 62. Kb1
{[%clk 0:00:25.5]} 62... a2+ {[%clk 0:00:26.3]} 63. Ka1 {[%clk 0:00:25.7]} 63...
Ka3 {[%clk 0:00:27.2]} 1/2-1/2

[Event "*** SCC Grand Prix: Titled Tuesday Blitz"]
[Site "Chess.com"]
[Date "2020.07.07"]
[Round "2"]
[White "KaterynaLagno"]
[Black "AldokhinIvan"]
[Result "1-0"]
[WhiteElo "2771"]
[BlackElo "2515"]
[TimeControl "180+1"]
[EndTime "10:18:54 PDT"]
[Termination "KaterynaLagno won by resignation"]

1. e4 {[%clk 0:03:00.9]} 1... c5 {[%clk 0:02:59.8]} 2. Nf3 {[%clk 0:03:00]} 2...
e6 {[%clk 0:03:00.2]} 3. d4 {[%clk 0:02:59]} 3... cxd4 {[%clk 0:03:00.4]} 4.
Nxd4 {[%clk 0:02:59.9]} 4... a6 {[%clk 0:03:00.9]} 5. Nc3 {[%clk 0:03:00]} 5...
Qc7 {[%clk 0:03:01.3]} 6. Bd3 {[%clk 0:02:59.7]} 6... Nf6 {[%clk 0:03:01.5]} 7.
O-O {[%clk 0:02:59.7]} 7... Bd6 {[%clk 0:02:59.4]} 8. f4 {[%clk 0:02:48.1]} 8...
Bc5 {[%clk 0:02:59.2]} 9. Be3 {[%clk 0:02:46.2]} 9... Nc6 {[%clk 0:02:59.1]} 10.
Be2 {[%clk 0:02:39.2]} 10... Qb6 {[%clk 0:02:54.6]} 11. Na4 {[%clk 0:02:36.9]}
11... Bxd4 {[%clk 0:02:54.3]} 12. Nxb6 {[%clk 0:02:35.3]} 12... Bxe3+ {[%clk
0:02:54.4]} 13. Kh1 {[%clk 0:02:35.8]} 13... Bxb6 {[%clk 0:02:55.1]} 14. Bf3
{[%clk 0:02:30.5]} 14... e5 {[%clk 0:02:22.6]} 15. Qd6 {[%clk 0:02:23.6]} 15...
Bd8 {[%clk 0:02:21.9]} 16. fxe5 {[%clk 0:02:12.4]} 16... Be7 {[%clk 0:02:21.4]}
17. Qc7 {[%clk 0:02:09.6]} 17... Bd8 {[%clk 0:02:13.3]} 18. Qd6 {[%clk
0:02:09.3]} 18... Be7 {[%clk 0:02:11.4]} 19. Qd2 {[%clk 0:02:08.3]} 19... Nxe5
{[%clk 0:02:10.9]} 20. Qg5 {[%clk 0:02:06.4]} 20... d6 {[%clk 0:01:53.8]} 21.
Qxg7 {[%clk 0:01:59.8]} 21... Rg8 {[%clk 0:01:53.6]} 22. Qh6 {[%clk 0:02:00.2]}
22... Rg6 {[%clk 0:01:53.7]} 23. Qd2 {[%clk 0:01:58.6]} 23... Be6 {[%clk
0:01:49.4]} 24. Qc3 {[%clk 0:01:44.4]} 24... Rc8 {[%clk 0:01:44.6]} 25. Qb4
{[%clk 0:01:43.9]} 25... b5 {[%clk 0:01:31.3]} 26. Qa5 {[%clk 0:01:36.6]} 26...
Nxf3 {[%clk 0:01:04.4]} 27. gxf3 {[%clk 0:01:19.6]} 27... Rxc2 {[%clk
0:01:03.6]} 28. Rac1 {[%clk 0:01:06.6]} 28... Rxc1 {[%clk 0:00:54.2]} 29. Rxc1
{[%clk 0:01:05.4]} 29... Bh3 {[%clk 0:00:54.7]} 30. Rg1 {[%clk 0:01:02.3]} 30...
d5 {[%clk 0:00:28.7]} 31. Rxg6 {[%clk 0:00:59.7]} 31... fxg6 {[%clk 0:00:21.8]}
32. e5 {[%clk 0:00:54.3]} 32... Nd7 {[%clk 0:00:20.4]} 33. Qxa6 {[%clk
0:00:53.1]} 33... Kf7 {[%clk 0:00:17.5]} 34. Qxb5 {[%clk 0:00:52.6]} 34... Ke6
{[%clk 0:00:15.6]} 35. a4 {[%clk 0:00:48.2]} 35... Nxe5 {[%clk 0:00:15.8]} 36.
a5 {[%clk 0:00:47.2]} 36... Nxf3 {[%clk 0:00:13.2]} 37. a6 {[%clk 0:00:45.1]}
37... Bf5 {[%clk 0:00:10.7]} 38. a7 {[%clk 0:00:40.3]} 38... Nd4 {[%clk
0:00:10.8]} 39. Qb6+ {[%clk 0:00:38.8]} 39... Ke5 {[%clk 0:00:11.1]} 40. a8=Q
{[%clk 0:00:32.9]} 40... Ne2 {[%clk 0:00:10.6]} 41. Qe3+ {[%clk 0:00:21.4]}
41... Be4+ {[%clk 0:00:10.3]} 42. Qxe4+ {[%clk 0:00:21.8]} 42... dxe4 {[%clk
0:00:09]} 43. Qe8 {[%clk 0:00:19.6]} 43... Kf6 {[%clk 0:00:07.8]} 44. Qc6+
{[%clk 0:00:19.1]} 44... Kg5 {[%clk 0:00:07.3]} 45. Qb5+ {[%clk 0:00:18.7]}
45... Kf4 {[%clk 0:00:07.6]} 46. Qxe2 {[%clk 0:00:19.2]} 46... Bf6 {[%clk
0:00:08.2]} 47. Kg2 {[%clk 0:00:17.6]} 47... Be5 {[%clk 0:00:07.9]} 48. b4
{[%clk 0:00:16.9]} 48... Kf5 {[%clk 0:00:08.1]} 49. b5 {[%clk 0:00:17.1]} 1-0

[Event "*** SCC Grand Prix: Titled Tuesday Blitz"]
[Site "Chess.com"]
[Date "2020.07.07"]
[Round "2"]
[White "Chessdude1987"]
[Black "Jbd735"]
[Result "0-1"]
[WhiteElo "2210"]
[BlackElo "2441"]
[TimeControl "180+1"]
[EndTime "10:18:54 PDT"]
[Termination "Jbd735 won on time"]

1. e4 {[%clk 0:03:00.9]} 1... e5 {[%clk 0:03:00.1]} 2. f4 {[%clk 0:03:00.1]}
2... exf4 {[%clk 0:02:59.5]} 3. Bc4 {[%clk 0:03:00.5]} 3... Nc6 {[%clk
0:02:56.7]} 4. d4 {[%clk 0:02:55.8]} 4... g5 {[%clk 0:02:56.9]} 5. Qh5 {[%clk
0:02:49.8]} 5... d5 {[%clk 0:02:21]} 6. Bxd5 {[%clk 0:02:41.4]} 6... Qf6 {[%clk
0:02:12]} 7. e5 {[%clk 0:02:09.4]} 7... Qf5 {[%clk 0:02:03.6]} 8. Nf3 {[%clk
0:02:03.5]} 8... Nb4 {[%clk 0:01:55.6]} 9. Bb3 {[%clk 0:01:40.6]} 9... g4 {[%clk
0:01:26.1]} 10. Qxf5 {[%clk 0:01:34.5]} 10... Bxf5 {[%clk 0:01:27]} 11. Ng5
{[%clk 0:01:24.8]} 11... Nxc2+ {[%clk 0:01:23.2]} 12. Bxc2 {[%clk 0:01:23.7]}
12... Bxc2 {[%clk 0:01:24.1]} 13. Nc3 {[%clk 0:01:20.5]} 13... h6 {[%clk
0:01:08.5]} 14. Nge4 {[%clk 0:01:17.3]} 14... O-O-O {[%clk 0:01:03.8]} 15. O-O
{[%clk 0:01:03.9]} 15... Rxd4 {[%clk 0:00:55]} 16. Rxf4 {[%clk 0:01:01]} 16...
Bb4 {[%clk 0:00:26.7]} 17. Be3 {[%clk 0:00:48.8]} 17... Bxc3 {[%clk 0:00:26.6]}
18. Bxd4 {[%clk 0:00:48.4]} 18... Bxd4+ {[%clk 0:00:26.6]} 19. Kh1 {[%clk
0:00:47]} 19... Bxe5 {[%clk 0:00:24.1]} 20. Rxg4 {[%clk 0:00:42.8]} 20... f5
{[%clk 0:00:22.7]} 21. Rh4 {[%clk 0:00:29.7]} 21... Bxe4 {[%clk 0:00:22.3]} 22.
Rc1 {[%clk 0:00:26.5]} 22... Nf6 {[%clk 0:00:21.4]} 23. Re1 {[%clk 0:00:23.6]}
23... Bxb2 {[%clk 0:00:19.9]} 24. Re2 {[%clk 0:00:22.4]} 24... Be5 {[%clk
0:00:18.9]} 25. h3 {[%clk 0:00:22.1]} 25... Rd8 {[%clk 0:00:18.7]} 26. Re1
{[%clk 0:00:18]} 26... Rd2 {[%clk 0:00:18.8]} 27. Rxh6 {[%clk 0:00:16.6]} 27...
Bxg2+ {[%clk 0:00:15.7]} 28. Kg1 {[%clk 0:00:16.2]} 28... Be4 {[%clk 0:00:14]}
29. Rh8+ {[%clk 0:00:14.7]} 29... Kd7 {[%clk 0:00:13.8]} 30. Rf8 {[%clk
0:00:14.4]} 30... Bd4+ {[%clk 0:00:13.1]} 31. Kf1 {[%clk 0:00:13.3]} 31... Rf2+
{[%clk 0:00:12.9]} 32. Kg1 {[%clk 0:00:12.8]} 32... Rg2+ {[%clk 0:00:13.1]} 33.
Kf1 {[%clk 0:00:12.3]} 33... Rh2 {[%clk 0:00:11.1]} 34. Rxe4 {[%clk 0:00:11.2]}
34... Nxe4 {[%clk 0:00:09.9]} 35. Ke1 {[%clk 0:00:11.1]} 35... Bc3+ {[%clk
0:00:08.9]} 36. Kd1 {[%clk 0:00:10.9]} 36... Rf2 {[%clk 0:00:07.9]} 37. Kc1
{[%clk 0:00:10.4]} 37... f4 {[%clk 0:00:08]} 38. h4 {[%clk 0:00:10.4]} 38... f3
{[%clk 0:00:07.9]} 39. h5 {[%clk 0:00:10.7]} 39... Rf1+ {[%clk 0:00:07.2]} 40.
Kc2 {[%clk 0:00:10.3]} 40... Bb4 {[%clk 0:00:07.3]} 41. Kd3 {[%clk 0:00:10.4]}
41... Bxf8 {[%clk 0:00:06.8]} 42. Kxe4 {[%clk 0:00:10.3]} 42... f2 {[%clk
0:00:07.3]} 43. Kf3 {[%clk 0:00:09.8]} 43... Bc5 {[%clk 0:00:08]} 44. Ke2 {[%clk
0:00:09.5]} 44... Rg1 {[%clk 0:00:08.4]} 45. Kd3 {[%clk 0:00:08.7]} 45... f1=Q+
{[%clk 0:00:09.3]} 0-1

[Event "*** SCC Grand Prix: Titled Tuesday Blitz"]
[Site "Chess.com"]
[Date "2020.07.07"]
[Round "2"]
[White "SidArun"]
[Black "shnitez"]
[Result "0-1"]
[WhiteElo "2206"]
[BlackElo "2519"]
[TimeControl "180+1"]
[EndTime "10:18:56 PDT"]
[Termination "shnitez won by resignation"]

1. d4 {[%clk 0:03:00.9]} 1... Nf6 {[%clk 0:02:52.8]} 2. Bg5 {[%clk 0:02:59.4]}
2... Ne4 {[%clk 0:02:49.2]} 3. h4 {[%clk 0:02:58.6]} 3... c5 {[%clk 0:02:44.2]}
4. d5 {[%clk 0:02:58]} 4... Qb6 {[%clk 0:02:35.1]} 5. Nd2 {[%clk 0:02:57]} 5...
Nxg5 {[%clk 0:02:25.8]} 6. hxg5 {[%clk 0:02:56.9]} 6... Qxb2 {[%clk 0:02:19.8]}
7. g6 {[%clk 0:02:56.8]} 7... fxg6 {[%clk 0:02:12.5]} 8. e4 {[%clk 0:02:40.5]}
8... a6 {[%clk 0:01:47.8]} 9. Ngf3 {[%clk 0:02:32.9]} 9... d6 {[%clk 0:01:45.3]}
10. Rb1 {[%clk 0:02:10.4]} 10... Qc3 {[%clk 0:01:38.5]} 11. Nh4 {[%clk 0:01:56]}
11... Qf6 {[%clk 0:01:27.4]} 12. Rb3 {[%clk 0:01:49.5]} 12... g5 {[%clk
0:01:10.5]} 13. Qh5+ {[%clk 0:01:24.1]} 13... Qf7 {[%clk 0:01:05.9]} 14. Ng6
{[%clk 0:01:16.9]} 14... Rg8 {[%clk 0:00:27]} 15. Qxh7 {[%clk 0:01:16.4]} 15...
Nd7 {[%clk 0:00:27.3]} 16. Nh8 {[%clk 0:01:09.9]} 16... Nf6 {[%clk 0:00:24.8]}
17. Nxf7 {[%clk 0:01:08.7]} 17... Nxh7 {[%clk 0:00:24.7]} 18. Nxd6+ {[%clk
0:01:07.2]} 18... exd6 {[%clk 0:00:25.6]} 19. Rxh7 {[%clk 0:01:06.8]} 19... b5
{[%clk 0:00:26.2]} 20. Rg3 {[%clk 0:00:56.9]} 20... Be7 {[%clk 0:00:25.3]} 21.
Nf3 {[%clk 0:00:47.6]} 21... g4 {[%clk 0:00:25.5]} 22. Nh2 {[%clk 0:00:43.7]}
22... Bg5 {[%clk 0:00:23.3]} 23. Nxg4 {[%clk 0:00:39.4]} 23... Bxg4 {[%clk
0:00:20]} 24. Rxg4 {[%clk 0:00:39.2]} 24... Bf6 {[%clk 0:00:20.9]} 25. Rg3
{[%clk 0:00:30.3]} 25... O-O-O {[%clk 0:00:20.2]} 26. Ra3 {[%clk 0:00:28.7]}
26... Kb7 {[%clk 0:00:20.8]} 27. c4 {[%clk 0:00:27.3]} 27... b4 {[%clk
0:00:20.8]} 28. Rd3 {[%clk 0:00:24.8]} 28... Rh8 {[%clk 0:00:17.2]} 29. Rxh8
{[%clk 0:00:24.4]} 29... Rxh8 {[%clk 0:00:18.1]} 30. Rh3 {[%clk 0:00:21.2]}
30... Re8 {[%clk 0:00:16.6]} 31. f3 {[%clk 0:00:20.8]} 31... a5 {[%clk
0:00:16.9]} 32. Bd3 {[%clk 0:00:20.5]} 32... a4 {[%clk 0:00:17.1]} 33. Bc2
{[%clk 0:00:19.2]} 33... Ra8 {[%clk 0:00:15.6]} 34. Kd2 {[%clk 0:00:18.2]} 34...
Kb6 {[%clk 0:00:15.8]} 35. Rh1 {[%clk 0:00:17.8]} 35... Ka5 {[%clk 0:00:15.3]}
36. Rb1 {[%clk 0:00:17.9]} 36... b3 {[%clk 0:00:14.4]} 37. axb3 {[%clk
0:00:17.6]} 37... a3 {[%clk 0:00:15.1]} 38. b4+ {[%clk 0:00:17]} 38... cxb4
{[%clk 0:00:15.2]} 39. Bb3 {[%clk 0:00:17.3]} 39... Kb6 {[%clk 0:00:14.3]} 40.
Ba2 {[%clk 0:00:17.4]} 40... Kc5 {[%clk 0:00:14.8]} 41. Kc2 {[%clk 0:00:17.1]}
41... Rh8 {[%clk 0:00:14.5]} 42. Kb3 {[%clk 0:00:16.5]} 42... Rh2 {[%clk
0:00:14.2]} 43. Rg1 {[%clk 0:00:13.1]} 43... Bd4 {[%clk 0:00:13.7]} 44. Re1
{[%clk 0:00:09.6]} 44... Rxg2 {[%clk 0:00:13.9]} 45. e5 {[%clk 0:00:10]} 45...
Rb2+ {[%clk 0:00:13.6]} 46. Ka4 {[%clk 0:00:10.3]} 46... Rxa2 {[%clk 0:00:12.4]}
47. e6 {[%clk 0:00:10.5]} 47... Bf6 {[%clk 0:00:12.5]} 48. e7 {[%clk 0:00:10]}
48... Bxe7 {[%clk 0:00:12.8]} 49. Rxe7 {[%clk 0:00:10.1]} 49... Rf2 {[%clk
0:00:12.3]} 50. Rc7+ {[%clk 0:00:10.1]} 50... Kd4 {[%clk 0:00:12.6]} 51. Kxb4
{[%clk 0:00:10.4]} 51... a2 {[%clk 0:00:13.3]} 52. Ra7 {[%clk 0:00:09.8]} 52...
Rb2+ {[%clk 0:00:13]} 0-1

[Event "*** SCC Grand Prix: Titled Tuesday Blitz"]
[Site "Chess.com"]
[Date "2020.07.07"]
[Round "2"]
[White "rasmussvane"]
[Black "Undisputed92"]
[Result "1-0"]
[WhiteElo "2880"]
[BlackElo "2560"]
[TimeControl "180+1"]
[EndTime "10:18:57 PDT"]
[Termination "rasmussvane won by resignation"]

1. Nf3 {[%clk 0:03:00.9]} 1... Nf6 {[%clk 0:02:57.2]} 2. g3 {[%clk 0:03:01.1]}
2... d5 {[%clk 0:02:55.6]} 3. Bg2 {[%clk 0:03:01.3]} 3... c6 {[%clk 0:02:56]} 4.
O-O {[%clk 0:03:01.8]} 4... g6 {[%clk 0:02:55.1]} 5. c4 {[%clk 0:03:02.2]} 5...
Bg7 {[%clk 0:02:55.1]} 6. b3 {[%clk 0:03:00.2]} 6... Ne4 {[%clk 0:02:53]} 7. d4
{[%clk 0:03:00]} 7... O-O {[%clk 0:02:52.7]} 8. Bb2 {[%clk 0:03:00.5]} 8... a5
{[%clk 0:02:52.3]} 9. Nc3 {[%clk 0:02:54.1]} 9... Nxc3 {[%clk 0:02:51]} 10. Bxc3
{[%clk 0:02:55]} 10... a4 {[%clk 0:02:51.2]} 11. Qd2 {[%clk 0:02:54.4]} 11...
Nd7 {[%clk 0:02:48]} 12. Qe3 {[%clk 0:02:28.3]} 12... Re8 {[%clk 0:02:42.9]} 13.
Rfd1 {[%clk 0:02:26.5]} 13... e6 {[%clk 0:02:38]} 14. h4 {[%clk 0:02:25.1]}
14... h6 {[%clk 0:02:35.2]} 15. Qf4 {[%clk 0:02:22.1]} 15... b5 {[%clk
0:02:29.8]} 16. cxb5 {[%clk 0:02:18.8]} 16... cxb5 {[%clk 0:02:29.5]} 17. Ne5
{[%clk 0:02:08.9]} 17... Nxe5 {[%clk 0:02:24.1]} 18. dxe5 {[%clk 0:02:09.8]}
18... Bb7 {[%clk 0:02:23.9]} 19. Rac1 {[%clk 0:01:56.4]} 19... axb3 {[%clk
0:02:13.6]} 20. axb3 {[%clk 0:01:57.3]} 20... Ra3 {[%clk 0:01:47.4]} 21. Qb4
{[%clk 0:01:47.2]} 21... Qa8 {[%clk 0:01:47.2]} 22. Ra1 {[%clk 0:01:46.3]} 22...
Bf8 {[%clk 0:01:36.2]} 23. Qxb5 {[%clk 0:01:45.5]} 23... Ba6 {[%clk 0:01:31.3]}
24. Rxa3 {[%clk 0:01:38]} 24... Bxa3 {[%clk 0:01:30]} 25. Qa4 {[%clk 0:00:59.1]}
25... Bxe2 {[%clk 0:01:27.2]} 26. Ra1 {[%clk 0:00:58.3]} 26... Qxa4 {[%clk
0:01:22.3]} 27. bxa4 {[%clk 0:00:59.2]} 27... Bc5 {[%clk 0:01:21.2]} 28. a5
{[%clk 0:00:59.3]} 28... Ra8 {[%clk 0:01:16.7]} 29. Bf1 {[%clk 0:00:51.6]} 29...
d4 {[%clk 0:00:53.6]} 30. Bd2 {[%clk 0:00:46.7]} 30... d3 {[%clk 0:00:51.6]} 31.
Kg2 {[%clk 0:00:33.4]} 31... Bd4 {[%clk 0:00:49.9]} 32. Ra4 {[%clk 0:00:28.3]}
32... Bxe5 {[%clk 0:00:49.2]} 33. Bxe2 {[%clk 0:00:28.4]} 33... dxe2 {[%clk
0:00:48.8]} 34. Kf3 {[%clk 0:00:28.8]} 34... Ra6 {[%clk 0:00:42.6]} 35. Kxe2
{[%clk 0:00:28.1]} 35... h5 {[%clk 0:00:41.3]} 36. Kd3 {[%clk 0:00:27.9]} 36...
Rd6+ {[%clk 0:00:39.1]} 37. Kc2 {[%clk 0:00:27.3]} 37... Bd4 {[%clk 0:00:38.8]}
38. Be3 {[%clk 0:00:23.8]} 38... Bxe3 {[%clk 0:00:36.7]} 39. fxe3 {[%clk
0:00:24.7]} 39... Ra6 {[%clk 0:00:37]} 40. Kd3 {[%clk 0:00:24.8]} 40... Kf8
{[%clk 0:00:37.3]} 41. Kc4 {[%clk 0:00:25.1]} 41... Ke7 {[%clk 0:00:37.6]} 42.
Kb5 {[%clk 0:00:25.4]} 42... Ra8 {[%clk 0:00:37]} 43. a6 {[%clk 0:00:13.7]}
43... Kd6 {[%clk 0:00:36.4]} 44. a7 {[%clk 0:00:13.9]} 44... Kc7 {[%clk
0:00:36.2]} 45. Ka6 {[%clk 0:00:14.4]} 45... Kc6 {[%clk 0:00:26.7]} 46. Rb4
{[%clk 0:00:12.1]} 46... Kd5 {[%clk 0:00:24.5]} 47. Rb8 {[%clk 0:00:09.3]} 47...
Rxa7+ {[%clk 0:00:24.3]} 48. Kxa7 {[%clk 0:00:10.2]} 48... Ke4 {[%clk
0:00:24.3]} 49. Rb7 {[%clk 0:00:09.7]} 49... f5 {[%clk 0:00:21.5]} 50. Rb6
{[%clk 0:00:10]} 1-0

[Event "*** SCC Grand Prix: Titled Tuesday Blitz"]
[Site "Chess.com"]
[Date "2020.07.07"]
[Round "2"]
[White "WashUntilHoles"]
[Black "DraG0s3L"]
[Result "1-0"]
[WhiteElo "2743"]
[BlackElo "2504"]
[TimeControl "180+1"]
[EndTime "10:18:57 PDT"]
[Termination "WashUntilHoles won by checkmate"]

1. e4 {[%clk 0:03:00.9]} 1... e6 {[%clk 0:02:59.7]} 2. d4 {[%clk 0:02:57.5]}
2... d5 {[%clk 0:02:59.9]} 3. Nd2 {[%clk 0:02:55.9]} 3... c5 {[%clk 0:02:59.6]}
4. Ngf3 {[%clk 0:02:53.3]} 4... Nc6 {[%clk 0:02:59.4]} 5. Bb5 {[%clk 0:02:48.2]}
5... cxd4 {[%clk 0:02:46.3]} 6. Nxd4 {[%clk 0:02:46.4]} 6... Bd7 {[%clk
0:02:44.1]} 7. Nxc6 {[%clk 0:02:46.3]} 7... bxc6 {[%clk 0:02:42.7]} 8. Bd3
{[%clk 0:02:46.2]} 8... Bd6 {[%clk 0:02:33.6]} 9. O-O {[%clk 0:02:40.6]} 9...
Ne7 {[%clk 0:02:31.9]} 10. b3 {[%clk 0:02:20.8]} 10... O-O {[%clk 0:02:30.8]}
11. Bb2 {[%clk 0:02:20.5]} 11... Ng6 {[%clk 0:02:30.3]} 12. Nf3 {[%clk 0:02:10]}
12... Qc7 {[%clk 0:02:17]} 13. c4 {[%clk 0:02:00.7]} 13... Ne5 {[%clk
0:01:47.2]} 14. exd5 {[%clk 0:02:00.5]} 14... exd5 {[%clk 0:01:43.1]} 15. Nxe5
{[%clk 0:01:52.3]} 15... Bxe5 {[%clk 0:01:42.8]} 16. Bxh7+ {[%clk 0:01:52.8]}
16... Kxh7 {[%clk 0:01:38.9]} 17. Qh5+ {[%clk 0:01:53.1]} 17... Kg8 {[%clk
0:01:39.1]} 18. Bxe5 {[%clk 0:01:54]} 18... Qd8 {[%clk 0:01:22.4]} 19. Rad1
{[%clk 0:01:51]} 19... Be6 {[%clk 0:01:22.2]} 20. Rfe1 {[%clk 0:01:45.5]} 20...
Qe7 {[%clk 0:01:18.3]} 21. c5 {[%clk 0:01:33.6]} 21... Qxc5 {[%clk 0:00:59.7]}
22. Re3 {[%clk 0:00:30.8]} 22... f6 {[%clk 0:00:48.5]} 23. Bd4 {[%clk
0:00:29.3]} 23... Qd6 {[%clk 0:00:47.4]} 24. Rg3 {[%clk 0:00:26.5]} 24... Rf7
{[%clk 0:00:28]} 25. Qg6 {[%clk 0:00:26]} 25... Qf4 {[%clk 0:00:23.4]} 26. Rf3
{[%clk 0:00:13.1]} 26... Qg5 {[%clk 0:00:19.5]} 27. Qd3 {[%clk 0:00:07.1]} 27...
Re8 {[%clk 0:00:11.4]} 28. Rg3 {[%clk 0:00:05.5]} 28... Qh6 {[%clk 0:00:10.3]}
29. h3 {[%clk 0:00:03]} 29... Bd7 {[%clk 0:00:08.1]} 30. Qc3 {[%clk 0:00:03.4]}
30... Re4 {[%clk 0:00:06.6]} 31. Re1 {[%clk 0:00:02.9]} 31... Rfe7 {[%clk
0:00:04.8]} 32. Rxe4 {[%clk 0:00:02.7]} 32... Rxe4 {[%clk 0:00:05.7]} 33. Bxf6
{[%clk 0:00:03.6]} 33... g6 {[%clk 0:00:03.3]} 34. Bg5 {[%clk 0:00:03.8]} 34...
Qh5 {[%clk 0:00:03.4]} 35. Qc5 {[%clk 0:00:03.9]} 35... Re1+ {[%clk 0:00:03.2]}
36. Kh2 {[%clk 0:00:04.5]} 36... Re5 {[%clk 0:00:02.6]} 37. Bf4 {[%clk 0:00:04]}
37... Rf5 {[%clk 0:00:02.7]} 38. Qd6 {[%clk 0:00:04.1]} 38... Be8 {[%clk
0:00:01.6]} 39. Be3 {[%clk 0:00:04.3]} 39... Bf7 {[%clk 0:00:01.9]} 40. Bd4
{[%clk 0:00:04.5]} 40... Qh4 {[%clk 0:00:01.7]} 41. Qb8+ {[%clk 0:00:04.2]}
41... Kh7 {[%clk 0:00:01.6]} 42. Qh8# {[%clk 0:00:04.4]} 1-0